fUSD/lending_fUSD_20241006
["ID","MTS","AMOUNT","RATE_DAILY","PERIOD"]
[339941410,1728172860661,56137.8051,0.000109,2]
[339941412,1728172958476,150.0,0.00011,3]
[339941413,1728172989642,594.47,9.458e-05,2]
[339941414,1728173094437,500.0,0.000109,2]
[339941415,1728173106528,1887.65751796,0.000109,2]
[339941416,1728173148400,798.29335575,0.000109,2]
[339941418,1728173268247,162.93,0.00010959,2]
[339941419,1728173277541,30706.6963,0.000109,2]
[339941426,1728173337262,200.0,0.0001081,2]
[339941427,1728173356503,802.28,0.00010662,2]
[339941428,1728173373640,250.0,0.00010498,2]
[339941429,1728173396601,23900.0,0.00010504,2]
[339941430,1728173401438,1292.43,0.0001072,2]
[339941431,1728173402672,150.0,0.00010662,2]
[339941432,1728173403005,150.0,0.00010662,2]
[339941433,1728173403217,150.0,0.00010662,2]
[339941434,1728173403416,150.0,0.00010662,2]
[339941435,1728173403634,150.0,0.00010662,2]
[339941436,1728173403962,225.81542262,0.00010662,2]
[339941437,1728173405937,113189.0237,0.000109,2]
[339941449,1728173431667,-258.76851609,0.00010991,2]
[339941453,1728173431701,-1817.0535657,0.00010991,2]
[339941464,1728173431791,-397.08384421,0.00010991,2]
[339941466,1728173431803,-521.434074,0.00010991,2]
[339941468,1728173431813,-301.065926,0.00010994,2]
[339941470,1728173431825,-2693.274074,0.00010994,2]
[339941473,1728173431834,-300.0,0.00010994,2]
[339941475,1728173431843,-3450.63529911,0.00010995,2]
[339941476,1728173431855,-1578.55756815,0.00010995,2]
[339941477,1728173431867,-319.86038199,0.00010995,2]
[339941496,1728173437747,-484.10503105,0.00010995,2]
[339941497,1728173437757,-365.28737017,0.00010996,2]
[339941498,1728173437902,-896.54677076,0.00010996,2]
[339941499,1728173437914,-1216.02192436,0.00010996,2]
[339941505,1728173439677,-526.41,0.00010996,2]
[339941506,1728173439784,-3249.95340702,0.00010996,2]
[339941507,1728173439838,-306.09729367,0.00010996,2]
[339941508,1728173439892,-427.51504439,0.00010996,2]
[339941509,1728173439905,-59.58736176,0.00010996,2]
[339941510,1728173439915,-2994.34,0.00010997,2]
[339941511,1728173439925,-781.87279802,0.00010999,2]
[339941512,1728173439946,-304.5,0.00010999,2]
[339941513,1728173439958,-753.83647302,0.00010999,2]
[339941619,1728173442880,-313.75221724,0.00010999,2]
[339941620,1728173442891,-291.59768324,0.00010999,2]
[339941621,1728173442903,-338.94299958,0.00010999,2]
[339941622,1728173442915,-209.8378289,0.00010999,2]
[339941623,1728173442924,-67331.48204757,0.00011,2]
[339941635,1728173443148,-150204.5506251,0.00011,2]
[339941636,1728173443959,200.0,0.00010777,2]
[339941638,1728173445710,-20886.38667323,0.00011,2]
[339941639,1728173445765,-18179.95254972,0.00011,2]
[339941640,1728173445924,-4855.4545189,0.00011,2]
[339941654,1728173449230,956.5,0.00010939,2]
[339941655,1728173466712,62140.3719,0.000109,2]
[339941656,1728173477454,1205.47,0.00010806,2]
[339941658,1728173505542,214.6151,0.000109,2]
[339941659,1728173512233,304.79,0.00010828,2]
[339941660,1728173521786,3819.3252,0.00010891,2]
[339941661,1728173532271,589.46,8.89e-05,2]
[339941662,1728173567941,664.92,0.00010762,2]
[339941663,1728173572264,150.68,0.00010868,2]
[339941664,1728173573650,718.46402013,0.000109,2]
[339941665,1728173671853,155.4,0.00010954,2]
[339941666,1728173677011,172.89819125,0.00010899,2]
[339941667,1728173681996,172.89819125,0.000109,2]
[339941668,1728173693479,500.0,0.00010954,2]
[339941669,1728173714025,150.0,0.00010959,2]
[339941670,1728173723427,8192.48,0.00010933,2]
[339941671,1728173762227,160.55,0.00010959,2]
[339941672,1728173803357,154.0,0.00010867,2]
[339941673,1728173865207,406.38,0.00010885,2]
[339941674,1728173905749,23900.0,0.000108,2]
[339941675,1728173910956,250.0,0.000108,2]
[339941676,1728173911576,177.528,0.0001078,2]
[339941677,1728173922366,646.21,0.00010821,2]
[339941678,1728173962944,250.0,0.00010863,2]
[339941679,1728173965454,171.67,0.00010882,2]
[339941680,1728173999044,646.61761818,0.000109,2]
[339941681,1728174010009,25358.55,0.00010959,2]
[339941682,1728174054221,200.0,0.00010913,2]
[339941683,1728174055710,13694.5157,0.000109,2]
[339941684,1728174073838,573.25,8.909e-05,2]
[339941685,1728174121952,1000.0,0.00010816,2]
[339941686,1728174131832,440.34,0.00010898,2]
[339941687,1728174206450,350.0,0.00021,90]
[339941688,1728174214121,181.0,0.00010959,2]
[339941690,1728174299384,-2211.50212101,0.0001099,2]
[339941691,1728174299406,-2397.6383094,0.00010995,2]
[339941692,1728174299427,-4710.1529746,0.00010995,2]
[339941693,1728174299448,-150.0,0.00010999,2]
[339941694,1728174299468,-155.28,0.00010999,2]
[339941695,1728174299492,-277700.42659499,0.00011,2]
[339941696,1728174314851,1500.0,0.00010775,2]
[339941697,1728174324813,2901.4902,0.000109,2]
[339941698,1728174331247,509.5205,0.000109,2]
[339941699,1728174334950,-6308000.0,0.00011,2]
[339941700,1728174344845,159.97,0.00010959,2]
[339941701,1728174370636,1229.5729,0.000109,2]
[339941702,1728174375508,1364.9288,0.000109,2]
[339941703,1728174401529,23900.0,0.00010921,2]
[339941704,1728174424307,3844.15634976,0.000109,2]
[339941705,1728174478371,150.0,0.00010957,2]
[339941706,1728174500762,171.5,0.00010899,2]
[339941721,1728174575839,200.0,0.0001,2]
[339941725,1728174585620,2814.0,0.0001089,2]
[339941727,1728174628571,178.4,0.00010954,2]
[339941735,1728174634666,-300.0,0.00010994,2]
[339941736,1728174634676,-338.53496438,0.00010995,2]
[339941740,1728174634725,-658.25,0.00010995,2]
[339941741,1728174634738,-502.63712399,0.00010995,2]
[339941742,1728174634752,-570.09,0.00010995,2]
[339941743,1728174634763,-600.81924,0.00010995,2]
[339941744,1728174634775,-11.59589713,0.00010995,2]
[339941745,1728174634786,-536.56731871,0.00010995,2]
[339941746,1728174634798,-707.84424105,0.00010995,2]
[339941747,1728174634865,-4024.22610294,0.00010995,2]
[339941748,1728174634883,-4657.16899925,0.00010997,2]
[339941749,1728174634898,-2752.50606922,0.00010997,2]
[339941750,1728174634909,-6682.94677235,0.00010999,2]
[339941751,1728174634920,-150.0,0.00010999,2]
[339941752,1728174634930,-500.0,0.00010999,2]
[339941753,1728174634941,-500.0,0.00010999,2]
[339941754,1728174634952,-500.0,0.00010999,2]
[339941755,1728174634963,-500.0,0.00010999,2]
[339941756,1728174634973,-500.0,0.00010999,2]
[339941757,1728174634983,-210.62201769,0.00010999,2]
[339941758,1728174634993,-3501.98056382,0.00011,2]
[339941759,1728174635005,-406.77852015,0.00011,2]
[339941760,1728174635019,-2109.43741355,0.00011,2]
[339941761,1728174635031,-301.2900896,0.00011,2]
[339941762,1728174635043,-3327.96126539,0.00011,2]
[339941763,1728174635054,-1552.423596,0.00011,2]
[339941764,1728174638096,-14469.96847138,0.00011,2]
[339941765,1728174638109,-592.08569065,0.00011,2]
[339941766,1728174638122,-10620.99461283,0.00011,2]
[339941767,1728174638136,-6628.30439943,0.00011,2]
[339941768,1728174638149,-450.87290596,0.00011,2]
[339941769,1728174638161,-10135.65999346,0.00011,2]
[339941770,1728174638175,-16381.48089212,0.00011,2]
[339941771,1728174638192,-98262.83624208,0.00011,2]
[339941772,1728174638205,-464.49215407,0.00011,2]
[339941773,1728174638235,-273.2828905,0.00011,2]
[339941774,1728174638248,-594.5,0.00011,2]
[339941775,1728174638261,-1851.34130064,0.00011,2]
[339941776,1728174638273,-729.82228752,0.00011,2]
[339941777,1728174638285,-289.4002629,0.00011,2]
[339941778,1728174638297,-281.55,0.00011,2]
[339941779,1728174638310,-2183.16426548,0.00011,2]
[339941780,1728174638349,-1177.0,0.00011,2]
[339941798,1728174639928,-1988.78510214,0.00011,2]
[339941799,1728174640095,-590.3446827,0.00011,2]
[339941970,1728174642875,-1210.0,0.00011,2]
[339941971,1728174642889,-18847.96200157,0.00011,2]
[339941972,1728174642901,-6020.00259753,0.00011,2]
[339941973,1728174642915,-22850.13228136,0.00011,2]
[339941974,1728174642988,-500.0,0.00011,2]
[339941975,1728174642999,-2729.02967468,0.00011,2]
[339941976,1728174643012,-9245.25,0.00011,2]
[339941989,1728174643234,-67331.48204757,0.00011,2]
[339941991,1728174643247,-1836.32055326,0.00011,2]
[339941992,1728174643258,-3664.28065587,0.00011,2]
[339941994,1728174643271,-3397.76989014,0.00011,2]
[339941996,1728174643282,-1269.05719409,0.00011,2]
[339941999,1728174643293,-167975.93750219,0.00011,2]
[339942001,1728174643309,-2829.58704795,0.00011,2]
[339942002,1728174643320,-4783.16,0.00011,2]
[339942003,1728174643332,-769.133491,0.00011,2]
[339942005,1728174643343,-511.74477419,0.00011,2]
[339942007,1728174643354,-36597.54571064,0.00011,2]
[339942009,1728174643365,-310.31,0.00011,2]
[339942011,1728174643377,-3011.29539032,0.00011,2]
[339942012,1728174644723,53570.7555,0.000109,2]
[339942014,1728174645909,-10019.09632223,0.00011,2]
[339942015,1728174645967,-1301.37556257,0.00011,2]
[339942016,1728174646044,-154155.73437465,0.00011,2]
[339942046,1728174679922,7500.0,0.000109,2]
[339942047,1728174680443,214.6151,0.000109,2]
[339942048,1728174693154,261.469,0.000109,2]
[339942049,1728174698812,457.382313,0.0001094,2]
[339942050,1728174796630,330.81,0.00010939,2]
[339942051,1728174824832,703.35,8.948e-05,2]
[339942052,1728174828646,150.0,0.00010959,2]
[339942053,1728174840489,160.88,0.00010959,2]
[339942054,1728174849592,3960.32095742,0.000109,2]
[339942055,1728174866758,327.14,0.00010892,2]
[339942056,1728174921913,23900.0,0.00010897,2]
[339942057,1728174933736,155.28,0.00010923,2]
[339942058,1728174957297,7196.3347,0.000109,2]
[339942059,1728174976181,250.0,0.00010891,2]
[339942060,1728175031754,1049.91,0.00010913,2]
[339942061,1728175111680,210.221,0.0001078,2]
[339942062,1728175147421,201.83,0.00010914,2]
[339942063,1728175147647,201.83,0.00010917,2]
[339942064,1728175148075,201.83,0.0001092,2]
[339942065,1728175148280,201.83,0.00010922,2]
[339942066,1728175148497,201.83,0.00010925,2]
[339942067,1728175148737,201.83,0.00010928,2]
[339942068,1728175148960,201.83,0.00010931,2]
[339942069,1728175149233,201.83,0.00010934,2]
[339942070,1728175149407,201.83,0.00010937,2]
[339942071,1728175149616,201.83,0.0001094,2]
[339942072,1728175149814,201.83,0.00010943,2]
[339942073,1728175150026,201.83,0.00010945,2]
[339942074,1728175150266,201.83,0.00010948,2]
[339942075,1728175150497,201.83,0.00010951,2]
[339942076,1728175150718,201.83,0.00010954,2]
[339942077,1728175151126,201.83,0.00010957,2]
[339942078,1728175151354,201.83,0.0001096,2]
[339942079,1728175180742,800.0,0.00010923,2]
[339942080,1728175233975,2028.9008,0.000109,2]
[339942081,1728175239397,250.0,0.00010943,2]
[339942082,1728175251734,200.0,0.00010899,2]
[339942083,1728175274926,3564.28886175,0.000109,2]
[339942084,1728175291810,228.23,0.00010903,2]
[339942085,1728175333214,679.52,8.889e-05,2]
[339942086,1728175356484,160.84,0.00010959,2]
[339942087,1728175449742,155.28,0.00010801,2]
[339942088,1728175486330,23900.0,0.00010801,2]
[339942089,1728175515612,159.79061283,0.000109,2]
[339942091,1728175582353,250.0,0.00010809,2]
[339942092,1728175637288,836.08,0.00010795,2]
[339942093,1728175693725,360.0,0.00010797,2]
[339942094,1728175700040,3207.85997553,0.000109,2]
[339942095,1728175766672,1612.0,0.000109,2]
[339942096,1728175809300,222.33,0.00010852,2]
[339942110,1728175832001,-201.83,0.00010963,2]
[339942111,1728175832012,-201.83,0.00010966,2]
[339942112,1728175832022,-171.67,0.00010968,2]
[339942113,1728175832031,-201.83,0.00010968,2]
[339942114,1728175832041,-1604.32970547,0.00010995,2]
[339942115,1728175832053,-517.85511205,0.00010995,2]
[339942116,1728175832064,-57.57653408,0.00010995,2]
[339942117,1728175832074,-1008.98778318,0.00010995,2]
[339942118,1728175832085,-100.58962342,0.00010995,2]
[339942119,1728175832095,-300.0,0.00010998,2]
[339942120,1728175832105,-82.14576066,0.00010999,2]
[339942121,1728175832120,-67.85423934,0.00010999,2]
[339942122,1728175832130,-500.0,0.00010999,2]
[339942123,1728175832139,-500.0,0.00010999,2]
[339942124,1728175832149,-393.57543364,0.00010999,2]
[339942125,1728175832158,-669.0201799,0.00011,2]
[339942126,1728175832170,-827.13712285,0.00011,2]
[339942127,1728175832182,-2909.42136035,0.00011,2]
[339942128,1728175832193,-32510.09794508,0.00011,2]
[339942129,1728175832205,-785.42033485,0.00011,2]
[339942139,1728175833295,171.93,0.00010869,2]
[339942144,1728175838145,-4340.75595051,0.00011,2]
[339942145,1728175838158,-278.93827902,0.00011,2]
[339942146,1728175838170,-325.12597568,0.00011,2]
[339942147,1728175838254,-1803.988746,0.00011,2]
[339942423,1728175843240,-67541.31987647,0.00011,2]
[339944156,1728175875278,668.47,9.204e-05,2]
[339944157,1728175891351,606.0427,0.00010895,2]
[339944158,1728175902696,1428.7982,0.000109,2]
[339944159,1728175941588,175.19255356,0.000109,2]
[339944160,1728175995660,857.685,0.000109,2]
[339944161,1728175999684,167.5,0.00010959,2]
[339944162,1728176011634,23900.0,0.00010919,2]
[339944163,1728176028766,150.0,0.00010959,2]
[339944164,1728176063310,263.93662768,0.00010895,2]
[339944165,1728176114107,250.0,0.00010942,2]
[339944166,1728176125387,3363.47642846,0.000109,2]
[339944167,1728176198390,418.04,0.00010864,2]
[339944168,1728176214430,178.52218256,0.000109,2]
[339944169,1728176263973,712.0,0.0001083,2]
[339944170,1728176311634,200.71,0.0001078,2]
[339944171,1728176331370,178.4,0.00010866,2]
[339944172,1728176449606,155.03,0.0001095,2]
[339944173,1728176478370,651.63,9.082e-05,2]
[339944174,1728176529239,23900.0,0.00010918,2]
[339944175,1728176551110,3027.12878565,0.000109,2]
[339944176,1728176609006,250.0,0.00010915,2]
[339944177,1728176674078,160.55,0.00010959,2]
[339944178,1728176678073,150.0,0.00011,3]
[339944179,1728176704473,1958.1933,0.000109,2]
[339944180,1728176745201,575.98,0.00010922,2]
[339944181,1728176759341,2031.0,0.00010922,2]
[339944182,1728176918384,173.11,0.00010922,2]
[339944183,1728176935618,171.67,0.00010922,2]
[339944184,1728176976074,2724.41590704,0.000109,2]
[339944185,1728176998923,634.79,8.971e-05,2]
[339944192,1728177032421,-150.0,0.00010989,2]
[339944193,1728177032432,-303.17,0.0001099,2]
[339944194,1728177032443,-303.17,0.0001099,2]
[339944195,1728177032453,-303.17,0.0001099,2]
[339944196,1728177032463,-303.17,0.0001099,2]
[339944197,1728177032472,-303.17,0.0001099,2]
[339944198,1728177032482,-303.17,0.0001099,2]
[339944199,1728177032495,-303.17,0.0001099,2]
[339944200,1728177032505,-303.17,0.0001099,2]
[339944202,1728177032515,-303.17,0.0001099,2]
[339944204,1728177032524,-61.82462768,0.0001099,2]
[339944224,1728177038321,-241.34537232,0.0001099,2]
[339944225,1728177038331,-303.17,0.0001099,2]
[339944226,1728177038341,-303.17,0.0001099,2]
[339944227,1728177038350,-303.17,0.0001099,2]
[339944228,1728177038360,-303.17,0.0001099,2]
[339944229,1728177038370,-303.17,0.0001099,2]
[339944230,1728177038379,-303.17,0.0001099,2]
[339944231,1728177038399,-303.17,0.0001099,2]
[339944232,1728177038413,-303.17,0.0001099,2]
[339944233,1728177038424,-303.17,0.0001099,2]
[339944234,1728177038434,-303.17,0.0001099,2]
[339944235,1728177038443,-1046.4887622,0.00010995,2]
[339944236,1728177038453,-2086.2605801,0.00010995,2]
[339944237,1728177038463,-311.11787776,0.00010999,2]
[339944238,1728177038473,-500.0,0.00010999,2]
[339944239,1728177038483,-500.0,0.00010999,2]
[339944240,1728177038492,-333.10205581,0.00010999,2]
[339944241,1728177038502,-500.0,0.00010999,2]
[339944242,1728177038511,-500.0,0.00010999,2]
[339944243,1728177038521,-300.0,0.00010999,2]
[339944244,1728177038530,-520.72825201,0.00010999,2]
[339944245,1728177038540,-500.0,0.00010999,2]
[339944246,1728177038549,-522.0,0.00011,2]
[339944247,1728177038559,-420.50053097,0.00011,2]
[339944248,1728177038572,-1279.7631426,0.00011,2]
[339944249,1728177038584,-1508.57123451,0.00011,2]
[339944250,1728177038595,-599.2800009,0.00011,2]
[339944251,1728177038607,-5510.06098439,0.00011,2]
[339944252,1728177038619,-1000.05789989,0.00011,2]
[339944254,1728177038630,-61033.84908,0.00011,2]
[339944262,1728177040539,-1494.86499998,0.00011,2]
[339944507,1728177043290,-88703.53207944,0.00011,2]
[339944509,1728177043300,-19473.16832003,0.00011,2]
[339944511,1728177043312,-44847.77081211,0.00011,2]
[339944516,1728177043354,-5861.44960526,0.00011,2]
[339944524,1728177043418,-67541.31987647,0.00011,2]
[339944724,1728177046390,-17804.00920906,0.00011,2]
[339944725,1728177046519,-1338.8375,0.00011,2]
[339944726,1728177046532,-7614.48000001,0.00011,2]
[339944727,1728177046694,-34322.7834206,0.00011,2]
[339944728,1728177057603,772.15,0.00021,90]
[339944729,1728177094246,600.0,0.00021,90]
[339944730,1728177139389,172.15,0.00021,90]
[339944731,1728177164573,250.0,0.00010835,2]
[339944732,1728177165370,159.97,0.00010959,2]
[339944733,1728177181587,250.0,0.00010832,2]
[339944734,1728177249663,1727.4821,0.000109,2]
[339944735,1728177285513,1078.77,0.00010827,2]
[339944736,1728177293233,870.88,0.00010858,2]
[339944737,1728177303254,1749.19,0.00010959,2]
[339944738,1728177372697,906.62,0.00010924,2]
[339944739,1728177401318,1235.04666306,0.000109,2]
[339944740,1728177401536,1803.53617025,0.000109,2]
[339944741,1728177457180,171.06,0.00010861,2]
[339944742,1728177511632,160.568,0.0001078,2]
[339944743,1728177560985,635.37,8.887e-05,2]
[339944744,1728177677783,250.0,0.00010847,2]
[339944745,1728177711169,250.0,0.00010847,2]
[339944746,1728177742088,1000.0,0.00010803,2]
[339944747,1728177753671,150.17,0.00010838,2]
[339944748,1728177823654,9939.61,0.00010858,2]
[339944749,1728177826478,2734.72454997,0.000109,2]
[339944750,1728177858972,726.88,0.00010858,2]
[339944751,1728177938177,-160.88,0.00010959,2]
[339944752,1728177938200,-2011.2149167,0.00010995,2]
[339944753,1728177938221,-150.0,0.00010999,2]
[339944754,1728177938243,-300.0,0.00010999,2]
[339944755,1728177938267,-61017.70089234,0.00011,2]
[339944756,1728177938894,733.22,0.00010866,2]
[339944757,1728177959112,-43759.9753122,0.00011,2]
[339944758,1728177987618,-150.0,0.00030797,120]
[339944759,1728177987646,-36.03,0.00031558,120]
[339944760,1728177987687,-113.97,0.00031558,120]
[339944761,1728177987711,-61.03,0.00031803,120]
[339944762,1728177998575,169.85,0.0001093,2]
[339944763,1728178028150,-2128.3046708,0.00010994,2]
[339944764,1728178028174,-1379.8544778,0.00010994,2]
[339944765,1728178028198,-4650.30370738,0.00011,2]
[339944766,1728178028228,-101736.64267401,0.00011,2]
[339944767,1728178048152,-35581.2417947,0.00011,2]
[339944768,1728178054160,-307.09612798,0.00011,2]
[339944769,1728178055584,619.34,9.113e-05,2]
[339944788,1728178231773,-150.2,0.00010952,2]
[339944789,1728178231783,-300.0,0.00010969,2]
[339944790,1728178231793,-2825.3,0.0001097,2]
[339944791,1728178231805,-415.97167028,0.0001097,2]
[339944792,1728178231816,-7364.30568255,0.0001097,2]
[339944793,1728178231829,-3281.11815459,0.0001097,2]
[339944796,1728178237978,-10013.30449258,0.0001097,2]
[339944797,1728178237989,-250.0,0.00010992,2]
[339944798,1728178237999,-61648.0058216,0.00011,2]
[339944799,1728178238011,-555.724639,0.00011,2]
[339944800,1728178238023,-127163.24093448,0.00011,2]
[339944801,1728178238163,-126036.85860148,0.00011,2]
[339944806,1728178239981,-3932.05,0.00011,2]
[339944808,1728178240003,-70289.05105152,0.00011,2]
[339944810,1728178240015,-702.36484713,0.00011,2]
[339944812,1728178240027,-725.0,0.00011,2]
[339944814,1728178240038,-2284.7263169,0.00011,2]
[339944816,1728178240050,-1752.88101036,0.00011,2]
[339944818,1728178240062,-3254.29440168,0.00011,2]
[339944821,1728178240074,-928.48512335,0.00011,2]
[339944833,1728178242911,-694.6552224,0.00011,2]
[339944834,1728178242923,-1329.2999999,0.00011,2]
[339944835,1728178242946,-41613.01855941,0.00011,2]
[339945085,1728178245787,377.4539,0.000109,2]
[339945087,1728178245839,-217132.37700194,0.00011,2]
[339945649,1728178251775,2496.22939205,0.000109,2]
[339945690,1728178259199,1440.0278,0.000109,2]
[339945691,1728178281652,227.18034604,0.000109,2]
[339945692,1728178322371,200.0,0.00010939,2]
[339945693,1728178331602,179.24713683,0.000109,2]
[339945694,1728178362811,7500.0,0.000109,2]
[339945695,1728178370064,1183.6121,0.000109,2]
[339945696,1728178372499,247.646,0.000109,2]
[339945697,1728178397870,519.77325948,0.00015,30]
[339945698,1728178411964,151.45356402,0.000109,2]
[339945699,1728178413698,191.45087929,0.000109,2]
[339945700,1728178433565,1000.0,0.000109,2]
[339945701,1728178461627,1905.7218,0.000109,2]
[339945702,1728178486898,1739.2426,0.000109,2]
[339945704,1728178672735,154.01169155,0.000109,2]
[339945705,1728178677027,2910.03153675,0.000109,2]
[339945706,1728178688120,619.7,9.048e-05,2]
[339945707,1728178711673,177.052,0.0001078,2]
[339945708,1728178764822,339.019,0.000109,2]
[339945709,1728178839928,250.0,0.00010947,2]
[339945710,1728178876077,840.0,0.00010925,2]
[339945711,1728178886430,250.0,0.00010949,2]
[339945713,1728179036260,203.88842019,0.000109,2]
[339945714,1728179102469,2619.02838303,0.000109,2]
[339945715,1728179231154,164.81434398,0.000109,2]
[339945716,1728179294440,150.0,0.00010896,2]
[339945717,1728179294461,283.25,0.00010896,2]
[339945718,1728179294484,1128.263786,0.00010896,2]
[339945720,1728179316611,222.33,0.00010923,2]
[339945721,1728179318121,602.17,9.005e-05,2]
[339945722,1728179350044,150.0,0.00010943,2]
[339945723,1728179350070,21.06,0.00010943,2]
[339945724,1728179366688,1524.0,0.000109,2]
[339945725,1728179406850,328.0,0.00010917,2]
[339945726,1728179410276,162.3936,0.00010852,2]
[339945727,1728179431768,-219.0,0.00010951,2]
[339945728,1728179431778,-1976.73008022,0.00010952,2]
[339945729,1728179431790,-1440.43885463,0.00010952,2]
[339945730,1728179431804,-3105.62002399,0.00010952,2]
[339945731,1728179431816,-7148.74963332,0.00010952,2]
[339945732,1728179431828,-420.98804803,0.00010952,2]
[339945733,1728179431839,-1329.28402773,0.00010952,2]
[339945734,1728179431933,-387.17470319,0.00010952,2]
[339945735,1728179431945,-429.36901561,0.00010952,2]
[339945736,1728179431958,-262.70659263,0.00010952,2]
[339945737,1728179431970,-2456.7,0.00010952,2]
[339945738,1728179431982,-4942.23902065,0.00010952,2]
[339945739,1728179432220,-164.37,0.00010959,2]
[339945740,1728179432231,-150.0,0.00010959,2]
[339945741,1728179432240,-191.16,0.00010967,2]
[339945742,1728179432249,-513.52,0.00010968,2]
[339945743,1728179432259,-1741.84643461,0.00010983,2]
[339945744,1728179432274,-1396.35356278,0.00010983,2]
[339945753,1728179437891,-1749.09000261,0.00010983,2]
[339945754,1728179437900,-184.82480817,0.0001099,2]
[339945755,1728179437910,-500.0,0.00010999,2]
[339945756,1728179437919,-423.17626135,0.00010999,2]
[339945757,1728179437928,-500.0,0.00010999,2]
[339945758,1728179437938,-500.0,0.00010999,2]
[339945759,1728179437948,-500.0,0.00010999,2]
[339945760,1728179437957,-500.0,0.00010999,2]
[339945761,1728179437967,-486.7118946,0.00010999,2]
[339945762,1728179437977,-3326.19580712,0.00011,2]
[339945763,1728179438040,-321.35129698,0.00011,2]
[339945764,1728179438096,-881.3,0.00011,2]
[339945765,1728179438108,-65383.074,0.00011,2]
[339945766,1728179438140,-12379.15130759,0.00011,2]
[339945767,1728179439893,-549.62579044,0.00011,2]
[339945768,1728179439905,-2264.98818522,0.00011,2]
[339945769,1728179439915,-726.83117382,0.00011,2]
[339945770,1728179440053,-860.01,0.00011,2]
[339945801,1728179442810,-14839.69947837,0.00011,2]
[339945802,1728179442821,-10797.29872224,0.00011,2]
[339945804,1728179443005,-620.65,0.00011,2]
[339945805,1728179443016,-8605.3986439,0.00011,2]
[339945821,1728179445867,-658.07952203,0.00011,2]
[339945822,1728179446026,-369535.07213461,0.00011,2]
[339945824,1728179446179,-289.62356368,0.00011,2]
[339945825,1728179465000,323.8184,0.00010852,2]
[339945826,1728179490625,180.94161762,0.000109,2]
[339945827,1728179528084,2956.22462962,0.000109,2]
[339945828,1728179585677,4685.08951461,0.000109,2]
[339945829,1728179589672,221.4234,0.000109,2]
[339945830,1728179598575,5955.099,0.00010899,2]
[339945831,1728179628932,1289.1451,0.000109,2]
[339945832,1728179722174,243.80209802,0.000109,2]
[339945833,1728179942267,7855.6575,0.000109,2]
[339945834,1728179953484,2660.60216664,0.000109,2]
[339945835,1728180192540,599.04,9.031e-05,2]
[339945836,1728180317173,790.813,0.00010803,2]
[339945837,1728180378437,2394.54195003,0.000109,2]
[339945838,1728180398303,150.0,0.00011,3]
[339945839,1728180476325,163.76037664,0.000109,2]
[339945840,1728180559465,191.16,0.00010934,2]
[339945841,1728180602627,250.0,0.00010917,2]
[339945848,1728180632014,-256.76,0.0001095,2]
[339945849,1728180632026,-161.53,0.00010959,2]
[339945850,1728180632038,-250.0,0.00010962,2]
[339945851,1728180632051,-36.57,0.00010993,2]
[339945852,1728180632065,-701.03,0.00010993,2]